Cogmind - Beta 15 @@@ ROGUE MODE // 2025.09.13 @ 20:49:54 Player: winnking222 Result: Destroyed by G-67 Veteran with Plasma Rifle Performance ------------- Evolutions (5) 2500 Regions Visited (13) 2600 Robots Destroyed (103) 515 Value Destroyed (3093) 3093 Prototype IDs (66) 1320 Alien Tech Used (0) 0 Bonus (2004) 2004 TOTAL SCORE: 12032 Bonus ------- High Alert Combat Kills 22 Follower Combat Kills 1082 Aligned with FarCom 300 Met Imprinter 300 Was Imprinted 300 Cogmind --------- Core Integrity 0/1000 Matter 285/300 Energy 45/100 System Corruption 3% Temperature Cool (0) Movement Core (50) Location -5/Extension Parts ------- > --- POWER (2) -------- (None) > --- PROPULSION (6) --- (None) > --- UTILITY (7) ------ Advanced Gravity Neutralizer Advanced Hacking Suite > --- WEAPON (2) ------- (None) > --- INVENTORY (5) ---- Micro Fission Core Carbon-fiber Leg Makeshift Transmission Jammer ECM Suite GAL Module Peak State ------------ > --- POWER ------------ Light Neutrino Core Micro Fission Core > --- PROPULSION ------- Xenon Bombardment Thruster Nuclear Pulse Thruster Nuclear Pulse Thruster Nuclear Pulse Thruster Nuclear Pulse Thruster Cooled Cesium-ion Thruster > --- UTILITY ---------- Medium Storage Unit Army-in-a-Box > --- WEAPON ----------- Makeshift Laser Powered Hammer > --- INVENTORY -------- Improved Sensor Array Makeshift Transmission Jammer ECM Suite Layered Light Armor Plating GAL Module [Rating: 108] Favorites ----------- Power Light Deuterium Engine Engine Light Deuterium Engine Power Core Light Neutrino Core Propulsion Titanium Leg Treads Light Treads Leg Titanium Leg Wheel Wheel Flight Unit Nuclear Pulse Thruster Utility Improved Sensor Array Device Improved Sensor Array Storage High-capacity Storage Unit Processor Improved Terrain Scan Processor Hackware Advanced Hacking Suite Protection Layered Light Armor Plating Weapon Gatling Laser Energy Gun Gatling Laser Energy Cannon Advanced Beam Cannon Ballistic Gun Coil Gun Launcher Rocket Launcher Impact Weapon Powered Hammer Slashing Weapon Master Tearclaws Build | -11 -10 -10 -10 -9 -8 -7 -7 -7 -7 -6 -6 -5 -5 ------- Run | Yrd Mat Min Exi Min Mat Fac Low Low Zio Pro Fac Fac Ext Slots Evolved 10 | . . . . . 4 2 . . . . 2 2 . Power 1 | . . . . . . . . . . . . 1 . Propulsion 4 | . . . . . 2 . . . . . 2 . . Utility 5 | . . . . . 2 2 . . . . . 1 . Weapon . | . . . . . . . . . . . . . . Parts Attached 99 | 7 9 2 6 1 14 10 5 3 6 3 17 7 9 Power 11 | 1 2 . 1 . 1 2 . 1 . . 1 2 . Engine 8 | 1 2 . 1 . 1 1 . 1 . . 1 . . Core 3 | . . . . . . 1 . . . . . 2 . Reactor . | . . . . . . . . . . . . . . Propulsion 32 | 2 3 . 3 . 7 1 2 . . . 7 2 5 Treads 3 | . 2 . 1 . . . . . . . . . . Leg 16 | 2 . . 2 . 7 1 2 . . . . . 2 Wheel 3 | . 1 . . . . . . . . . . . 2 Hover . | . . . . . . . . . . . . . . Flight 10 | . . . . . . . . . . . 7 2 1 Utility 38 | 2 1 . 1 1 6 4 1 2 3 3 7 3 4 Device 16 | 1 . . . . 2 3 . . 2 2 3 1 2 Storage 5 | 1 1 . 1 1 . . . . . . 1 . . Processor 6 | . . . . . . 1 1 . . . 3 1 . Hackware 2 | . . . . . . . . . . . . 1 1 Protection 9 | . . . . . 4 . . 2 1 1 . . 1 Artifact . | . . . . . . . . . . . . . . Weapon 18 | 2 3 2 1 . . 3 2 . 3 . 2 . . Energy Gun 7 | 2 . . 1 . . . 2 . 1 . 1 . . Energy Cannon 3 | . . . . . . 3 . . . . . . . Ballistic Gun 4 | . 2 1 . . . . . . 1 . . . . Ballistic Cannon . | . . . . . . . . . . . . . . Launcher 2 | . 1 1 . . . . . . . . . . . Special Weapon . | . . . . . . . . . . . . . . Impact Weapon 1 | . . . . . . . . . . . 1 . . Slashing Weapon 1 | . . . . . . . . . 1 . . . . Piercing Weapon . | . . . . . . . . . . . . . . Special Melee Weapon . | . . . . . . . . . . . . . . Unidentified Prototypes 9 | . . . . . . 2 . . 2 . 1 2 2 Parts Lost 29 | . 6 . . . 1 1 . 3 . . 2 1 15 Power 4 | . 1 . . . . 1 . 1 . . . . 1 Propulsion 15 | . 2 . . . . . . . . . 1 1 11 Utility 6 | . . . . . 1 . . 2 . . 1 . 2 Weapon 4 | . 3 . . . . . . . . . . . 1 Highest Loss Streak 10 | . 4 . . . 1 1 . 3 . . 2 1 10 To Critical Strikes . | . . . . . . . . . . . . . . Average Backups 10 | 5 9 8 7 9 13 14 14 13 14 10 4 3 4 Power 1 | . . 1 . . . 1 2 1 1 1 1 1 . Propulsion 4 | 3 3 3 3 4 5 6 6 6 7 5 . . . Utility 4 | . 2 3 3 4 4 5 6 5 5 3 2 2 3 Weapon . | 1 1 1 1 1 2 1 . . . . . . . Tool/Special . | . . . . . . . . . . . . . . Unused Backups 22 | . 1 3 1 . 5 2 . 4 . . 3 1 2 Power 2 | . . . . . . 1 . . . . 1 . . Propulsion 8 | . 1 2 . . . 1 . 3 . . . . 1 Utility 7 | . . 1 1 . 1 . . 1 . . 2 . 1 Weapon 5 | . . . . . 4 . . . . . . 1 . Tool/Special . | . . . . . . . . . . . . . . Average Slot Usage (%) 91 | . 93 100 88 85 83 93 100 98 99 83 98 93 71 Engine 7 | . 14 14 14 14 9 6 7 6 7 7 6 . . Treads 3 | . 4 28 14 28 2 . . . . . . . . Leg 19 | . 16 . 13 . 32 30 30 30 30 30 1 . . Flight 7 | . . . . . . . . . . . 38 34 29 Device 13 | . 14 14 14 14 11 15 18 14 15 10 15 11 5 Storage 7 | . 14 14 14 14 9 7 7 7 7 4 6 5 4 Processor 7 | . . . . . . 6 11 15 13 1 9 16 4 Protection 6 | . . . . . 9 14 7 5 8 12 6 5 2 Energy Gun 10 | . 17 4 9 14 9 5 12 15 14 7 6 5 3 Ballistic Gun 1 | . 6 19 4 . . . . . . 7 . . . Impact Weapon 1 | . . . . . . . . . . . 5 5 4 Peak Build Rating 108 | 7 8 10 45 29 51 59 53 58 66 87 75 83 108 Average Rating 53 | 4 7 9 29 29 45 56 51 53 59 71 70 77 76 On Entrance 40 | . 7 8 10 29 29 51 50 53 58 66 63 71 78 Naked Turns 10 | . . . . . . . . . . . . . 10 Heaviest Build 108 | 11 20 22 32 52 69 69 66 65 63 73 73 34 108 Greatest Support 79 | 20 40 40 60 40 68 68 66 79 79 79 79 36 39 Greatest Overweight (x) 10 | . 1 . 1 1 1 1 1 1 . . 1 . 10 Average Overweight (x) . | . . . . . . . . . . . . . 1 Largest Inventory Capacity 20 | 8 10 10 15 20 20 20 20 20 20 20 20 10 10 Average Capacity 15 | 7 9 10 12 17 20 20 20 20 20 14 10 10 9 Most Carried 20 | 8 10 10 15 16 20 20 20 20 20 20 20 10 10 Average Carried 15 | 6 9 9 11 15 19 19 19 19 19 14 10 9 7 Final Capacity 20 | 8 10 10 15 20 20 20 20 20 20 20 10 10 5 Final Carried 20 | 7 10 10 15 16 20 20 20 20 20 20 10 10 5 Class Distribution -------------------- 41% | Mutant 34% | Skirmisher 13% | Scavenger-Ninja 4% | Scavenger-Sprinter 3% | Derelict-Mutant Dominant Class ---------------- Mutant | -10/Materials Mutant | -10/Mines Mutant | -10/Exiles Mutant | -9/Mines Mutant | -8/Materials Skirmisher | -7/Factory Skirmisher | -7/Lower Caves Skirmisher | -7/Lower Caves Skirmisher | -7/Zion Mutant | -6/Proximity Caves Scavenger-Ninja | -6/Factory Scavenger-Ninja | -5/Factory Scavenger-Mutant | -5/Extension Resources | -11 -10 -10 -10 -9 -8 -7 -7 -7 -7 -6 -6 -5 -5 ----------- Run | Yrd Mat Min Exi Min Mat Fac Low Low Zio Pro Fac Fac Ext Matter Collected 2015 | 270 239 115 130 10 167 120 57 74 88 142 254 169 180 Remotely . | . . . . . . . . . . . . . . Salvage Created 3672 | 81 527 100 . 160 1294 692 . 73 . . 219 71 455 Parts 188 | 9 38 7 . 8 63 38 . 6 . . 4 . 15 Haulers Intercepted 4 | . 1 . . . 1 . . . . . 2 . . Recyclers Shooed 3 | . 2 . . . . 1 . . . . . . . Parts Field Recycled . | . . . . . . . . . . . . . . Retrieved Matter . | . . . . . . . . . . . . . . Parts Self-Destructed 55 | . . . . . . . 4 27 2 22 . . . Prevented 10 | . . . . . . . . . 4 6 . . . Kills | -11 -10 -10 -10 -9 -8 -7 -7 -7 -7 -6 -6 -5 -5 ------- Run | Yrd Mat Min Exi Min Mat Fac Low Low Zio Pro Fac Fac Ext Combat Hostiles Destroyed 71 | . 19 2 . 6 24 11 . 4 . . . . 5 Guns 49 | . 7 1 . 6 24 7 . 4 . . . . . Cannons 3 | . . . . . . 3 . . . . . . . AOE 13 | . 12 1 . . . . . . . . . . . Classes Destroyed 15 | 1 7 3 . . 2 1 . . . . . . 1 Worker 4 | . 1 1 . . 1 1 . . . . . . . Builder 6 | . 1 . . . 1 1 . . . . . 3 . Tunneler 5 | 3 1 . . . . . . . . . . . 1 Hauler 4 | . 1 . . . 1 . . . . . 2 . . Recycler 1 | . . 1 . . . . . . . . . . . Watcher 13 | . 1 . . . 4 4 . . . . 2 1 1 Swarmer 22 | . 9 . . 3 3 3 . 4 . . . . . Grunt 35 | . 9 . . 3 17 6 . . . . . . . Duelist 1 | . . . . . . . . . . . . . 1 Sentry 7 | . . . . . 3 1 . . . . . . 3 Demolisher 1 | . . 1 . . . . . . . . . . . Hunter 2 | . . . . . 1 . . . . . . . 1 Programmer 1 | . . . . . . 1 . . . . . . . Subdweller 1 | . 1 . . . . . . . . . . . . Z-Courier 1 | . . . . . . . . . . . . . 1 Assembled 1 | . . 1 . . . . . . . . . . . Best Kill Streak 6 | 3 6 4 . 3 6 6 . 4 . . 2 3 1 Combat Bots Only 6 | . 6 2 . 3 6 4 . 4 . . . . 1 Max Kills in Single Turn 4 | 1 4 1 . 1 1 1 . 1 . . 1 1 1 Gunslinging . | . . . . . . . . . . . . . . Exploded 4 | . 4 1 . . . . . . . . . . . Melee . | . . . . . . . . . . . . . . Uniques/NPCs Destroyed . | . . . . . . . . . . . . . . Combat | -11 -10 -10 -10 -9 -8 -7 -7 -7 -7 -6 -6 -5 -5 -------- Run | Yrd Mat Min Exi Min Mat Fac Low Low Zio Pro Fac Fac Ext Hostile Shots Fired 520 | . 85 13 . 8 46 88 . 48 . 6 28 40 158 Missed 175 | . 18 2 . 3 17 28 . 18 . 3 14 22 50 Hits 345 | . 67 11 . 5 29 60 . 30 . 3 14 18 108 Melee 2 | . . . . . . . . 1 . . . . 1 Projectile 343 | . 67 11 . 5 29 60 . 29 . 3 14 18 107 AOE 5 | . . 4 . . . . . . . . . . 1 Critical Strikes 16 | . 2 . . . 1 4 . 1 . . 1 1 6 Part Disruptions 2 | . . . . . . 2 . . . . . . . Damage Taken 6093 | . 815 339 . 53 459 975 . 431 . 61 212 328 2420 Core 1532 | . 162 39 . 10 47 172 . 26 . 20 45 58 953 Absorbed by Shields 18 | . . . . . . . . . . . . . 18 Regen/Repaired (Parts) 20 | . . . . . . . . . . . . 20 . Core Remaining (%) 73 | 100 . . . 15 91 . . . . 68 94 . . Volleys Fired 113 | 9 52 8 . . . 12 . 10 4 4 1 . 13 Largest 2 | 2 2 2 . . . 2 . 2 2 2 1 . 1 Hottest 160 | 80 80 63 . . . 136 . 160 160 80 150 . 150 Shots Fired 347 | 18 94 11 . 11 107 57 . 20 7 8 1 . 13 Gun 307 | 18 84 4 . 11 107 34 . 20 7 8 1 . 13 Cannon 23 | . . . . . . 23 . . . . . . . Launcher 17 | . 10 7 . . . . . . . . . . . Special . | . . . . . . . . . . . . . . Kinetic 27 | . 19 4 . . . . . . . 4 . . . Thermal 303 | 18 65 . . 11 107 57 . 20 7 4 1 . 13 Explosive 17 | . 10 7 . . . . . . . . . . . Electromagnetic . | . . . . . . . . . . . . . . Robot Hit Streak 16 | 3 11 3 . 9 16 14 . 7 . 1 . . 4 Robot Miss Streak 6 | 6 3 2 . 1 5 3 . 5 . 6 . . 2 Penetration Max . | . . . . . . . . . . . . . . Secondary Targets 2 | . 1 . . . . . . 1 . . . . . Max Gunslinging Chain 1 | . 1 . . . . . . 1 . . . . . Autonomous 153 | . . . . 11 107 35 . . . . . . . Shots Hit Robots 243 | 7 44 5 . 10 80 39 . 16 . 2 7 5 28 Core Hits 140 | 3 40 10 . 7 40 23 . 12 . . 1 . 4 Critical Kills 2 | . . 1 . . . 1 . . . . . . . Critical Parts Destroyed 8 | . . . . . . . . . . . 2 2 4 Critical Strikes 10 | . . 1 . . . 1 . . . . 2 2 4 Meltdown 1 | . . . . . . 1 . . . . . . . Destroy 1 | . . 1 . . . . . . . . . . . Smash 8 | . . . . . . . . . . . 2 2 4 Melee Attacks 155 | . . . . . . . . . 3 . 46 71 35 Impact 152 | . . . . . . . . . . . 46 71 35 Slashing 3 | . . . . . . . . . 3 . . . . Piercing . | . . . . . . . . . . . . . . Sneak Attacks 9 | . . . . . . . . . . . 2 2 5 Combat Hostiles 3 | . . . . . . . . . . . . . 3 Follow-up Attacks . | . . . . . . . . . . . . . . Damage Inflicted 8044 | 74 1423 294 . 267 2422 1083 . 310 . 29 372 335 1435 Guns 4557 | 74 508 87 . 267 2356 805 . 310 . 29 . . 121 Cannons 269 | . . . . . . 269 . . . . . . . Explosions 1169 | . 914 207 . . . . . . . . . . 48 Melee 1968 | . . . . . . . . . . . 372 335 1261 Ramming 81 | . 1 . . . 66 9 . . . . . . 5 Kinetic 199 | . 83 87 . . . . . . . 29 . . . Thermal 4675 | 74 425 . . 267 2356 1074 . 310 . . . . 169 Explosive 1121 | . 914 207 . . . . . . . . . . . Electromagnetic . | . . . . . . . . . . . . . . Impact 1968 | . . . . . . . . . . . 372 335 1261 Slashing . | . . . . . . . . . . . . . . Piercing . | . . . . . . . . . . . . . . Highest Corruption 3 | . . . . . 1 1 1 1 1 . 1 2 3 Average Corruption 1 | . . . . . 1 1 1 1 1 . 1 1 2 Corruption Purged . | . . . . . . . . . . . . . . Corruption Blocked . | . . . . . . . . . . . . . . Effects 57 | . . . . . 7 1 6 19 . . 5 7 12 Message Errors 16 | . . . . . 3 . 2 4 . . 3 2 2 Matter Fused 11 | . . . . . 2 . . 4 . . . 3 2 Heat Flow Errors 5 | . . . . . 1 . . 3 . . . . 1 Energy Discharges 8 | . . . . . 1 1 1 2 . . . 1 2 Parts Rejected 1 | . . . . . . . . . . . . . 1 Parts Fused 1 | . . . . . . . . 1 . . . . . Data Loss (minor) 13 | . . . . . . . 3 5 . . 2 1 2 Misfires 1 | . . . . . . . . . . . . . 1 Alerts 1 | . . . . . . . . . . . . . 1 Overload Shots 6 | . . . . . . . . . 1 . 1 . 4 Effects 5 | . . . . . . . . . 1 . 1 . 3 Energy Bleed 2 | . . . . . . . . . 1 . . . 1 Heat Surge 2 | . . . . . . . . . . . 1 . 1 Short Circuit 1 | . . . . . . . . . . . . . 1 Overflow Damage 833 | . 36 . . . . . . . . . 124 226 447 Projectiles . | . . . . . . . . . . . . . . Explosions 50 | . 36 . . . . . . . . . . . 14 Melee 783 | . . . . . . . . . . . 124 226 433 Knockbacks 7 | . . . . . . . . . . . 1 1 5 Impact 7 | . . . . . . . . . . . 1 1 5 Kinetic . | . . . . . . . . . . . . . . Secondary . | . . . . . . . . . . . . . . Self-Inflicted Damage 212 | . . 96 . . . . . . . . . . 116 Shots 4 | . . 3 . . . . . . . . . . 1 Rammed 1 | . . . . . . . . . . . . . 1 Targets Rammed 12 | . 1 . . . 9 1 . . . . . . 1 Kicked 11 | . 1 . . . 9 1 . . . . . . . Crushed . | . . . . . . . . . . . . . . Highest Temperature 499 | 54 294 9 . . 213 286 . 499 247 60 368 225 202 Average Temperature 82 | 25 100 4 . . 98 137 . 128 105 26 108 60 48 Received Heat Transfer 1643 | . 321 . . 21 225 135 . 15 . . 57 117 752 Effects 11 | . . . . . . 1 . 2 1 . 7 . . Shutdowns 1 | . . . . . . . . 1 . . . . . Energy Bleed 2 | . . . . . . . . 1 1 . . . . Interference 5 | . . . . . . 1 . . . . 4 . . Matter Decay 2 | . . . . . . . . . . . 2 . . Damage (minor) 1 | . . . . . . . . . . . 1 . . Siege Activations . | . . . . . . . . . . . . . . Martial Activations . | . . . . . . . . . . . . . . Shielding Activations . | . . . . . . . . . . . . . . Robots Disrupted . | . . . . . . . . . . . . . . Combat Hostiles . | . . . . . . . . . . . . . . Robots Corrupted 10 | . . . . . . . . . . . 1 2 7 Combat Hostiles 5 | . . . . . . . . . . . . . 5 Parts Fried 15 | . . . . . . . . . . . 2 8 5 Impact Corruptions 26 | . . . . . . . . . . . 4 7 15 Robots Melted 1 | . . . . . . 1 . . . . . . . Combat Hostiles 1 | . . . . . . 1 . . . . . . . Parts Melted 19 | 1 1 . . 1 5 3 . 3 . . . . 5 Heat Transferred 6932 | 175 975 . . 333 2997 1443 . 700 . . . . 309 Parts Sabotaged . | . . . . . . . . . . . . . . Parts Stolen 1 | . . . . . . . . 1 . . . . . Parts Stripped . | . . . . . . . . . . . . . . Power Chain Reactions . | . . . . . . . . . . . . . . Alert | -11 -10 -10 -10 -9 -8 -7 -7 -7 -7 -6 -6 -5 -5 ------- Run | Yrd Mat Min Exi Min Mat Fac Low Low Zio Pro Fac Fac Ext Maximum Alert Level 2 | . 1 . . . 2 1 . . . . . 1 1 Low Security (%) 76 | 100 85 100 . 100 43 46 . . . . 100 60 99 Level 1 22 | . 14 . . . 47 53 . . . . . 39 . Level 2 1 | . . . . . 9 . . . . . . . . Level 3 . | . . . . . . . . . . . . . . Level 4 . | . . . . . . . . . . . . . . Level 5 . | . . . . . . . . . . . . . . High Security . | . . . . . . . . . . . . . . Max Security . | . . . . . . . . . . . . . . Peak Influence 420 | 10 267 48 . 84 420 258 . . . . 109 300 211 Initial 177 | . 3 . . . . 177 . . . . . 53 147 Average 101 | 2 63 8 . 17 203 201 . . . . 6 128 88 Influence Increases 4584 | 15 525 53 . 142 874 342 . 90 . 528 316 814 885 Destroy 0b10 Robot/C 2200 | . 360 20 . 120 580 220 . 80 . 320 . 40 460 Destroy 0b10 Robot/NC 205 | 15 25 10 . . 40 30 . . . . 20 20 45 Destroy Leader 418 | . 74 . . 20 132 58 . 10 . 50 8 12 54 Allied During Kill 313 | . . . . . 37 . . . . 158 . 5 113 Successful Hack 99 | . 19 . . . 22 16 . . . . . 28 14 Disable Machine 135 | . . . . . 45 15 . . . . 15 30 30 Destroy Structure 314 | . 47 23 . 2 18 3 . . . . 33 124 64 Partial Spotted 255 | . . . . . . . . . . . 120 105 30 Lose Combat Pursuer 645 | . . . . . . . . . . . 120 450 75 Influence Decreases 4584 | 10 530 40 13 142 483 534 199 90 . 528 207 623 1185 Entered New Map 512 | . 2 . 13 . . 214 74 . . . . 56 153 Time Decay 2792 | 10 318 40 . 142 433 310 125 70 . 308 177 437 422 Lost Part 280 | . 60 . . . 10 10 . 20 . . 20 10 150 Lost Ally 850 | . . . . . 40 . . . . 220 10 120 460 Purge Threat 150 | . 150 . . . . . . . . . . . . Squads Dispatched 36 | . 4 . . . 5 3 . . . . 7 10 7 Investigation 22 | . 4 . . . 4 . . . . . 3 6 5 Extermination 7 | . . . . . . 1 . . . . 3 3 . Reinforcement 7 | . . . . . 1 2 . . . . 1 1 2 Assault . | . . . . . . . . . . . . . . Garrison . | . . . . . . . . . . . . . . Intercept . | . . . . . . . . . . . . . . Searches Triggered . | . . . . . . . . . . . . . . Construction Impeded 1 | . . . . . . . . . . . . . 1 Haulers Reinforced . | . . . . . . . . . . . . . . Active Scanning Responses . | . . . . . . . . . . . . . . Cargo Convoy Interrupts . | . . . . . . . . . . . . . . Stealth | -11 -10 -10 -10 -9 -8 -7 -7 -7 -7 -6 -6 -5 -5 --------- Run | Yrd Mat Min Exi Min Mat Fac Low Low Zio Pro Fac Fac Ext Distress Signals 10 | . 1 . . . 2 2 . . . . . 1 4 Communications Jammed 25 | . . . . . . . . . . . . 25 . Distress Signals 25 | . . . . . . . . . . . . 25 . Times Spotted 214 | . 30 20 . 6 35 15 . 12 . 2 15 34 45 Peak Tracking Total 20 | . 10 20 . 2 7 5 . 4 . 2 8 6 9 Tactical Retreats 23 | . 3 1 . . . . . . . . 3 12 4 Traps | -11 -10 -10 -10 -9 -8 -7 -7 -7 -7 -6 -6 -5 -5 ------- Run | Yrd Mat Min Exi Min Mat Fac Low Low Zio Pro Fac Fac Ext Traps Triggered 9 | . 1 . . . 2 . . . . . 2 1 3 Indirectly . | . . . . . . . . . . . . . . Trap Hack Attempts . | . . . . . . . . . . . . . . Triggered . | . . . . . . . . . . . . . . Disarmed . | . . . . . . . . . . . . . . Reprogrammed . | . . . . . . . . . . . . . . Reused . | . . . . . . . . . . . . . . Traps Extracted . | . . . . . . . . . . . . . . Installed . | . . . . . . . . . . . . . . Triggered . | . . . . . . . . . . . . . . Most Traps Carried 2 | . . 2 2 1 1 1 . . . . . . . Machines | -11 -10 -10 -10 -9 -8 -7 -7 -7 -7 -6 -6 -5 -5 ---------- Run | Yrd Mat Min Exi Min Mat Fac Low Low Zio Pro Fac Fac Ext Machines Disabled 9 | . . . . . 3 1 . . . . 1 2 2 Max in Single Turn 2 | . . . . . 1 1 . . . . 1 1 2 Garrison Access 3 | . . . . . 1 . . . . . . 2 . Energy Cycler 1 | . . . . . . . . . . . . . 1 Machines Repaired . | . . . . . . . . . . . . . . Machines Dismantled . | . . . . . . . . . . . . . . Machines Sabotaged . | . . . . . . . . . . . . . . Overloaded Fab Kills . | . . . . . . . . . . . . . . Hacking | -11 -10 -10 -10 -9 -8 -7 -7 -7 -7 -6 -6 -5 -5 --------- Run | Yrd Mat Min Exi Min Mat Fac Low Low Zio Pro Fac Fac Ext Machines Accessed 39 | . 7 . 2 . 9 3 1 . . . 3 9 5 Terminals 20 | . 7 . . . 7 1 . . . . . . 5 Fabricators 6 | . . . . . . 1 . . . . 2 3 . Repair Stations 3 | . . . . . . . . . . . 1 2 . Recycling Units . | . . . . . . . . . . . . . . Scanalyzers 2 | . . . . . 1 . . . . . . 1 . Garrison Access 5 | . . . . . 1 1 . . . . . 3 . Total Hacks 91 | . 17 . 3 . 22 4 1 . . . 10 21 13 Successful 46 | . 9 . 3 . 14 2 1 . . . 4 11 2 Failed 45 | . 8 . . . 8 2 . . . . 6 10 11 Catastrophic 6 | . 1 . . . 1 1 . . . . . 1 2 Database Lockouts . | . . . . . . . . . . . . . . Manual 122 | . 16 . 1 . 13 . . . . . 34 44 14 Terminals 50 | . 17 . . . 18 2 . . . . . . 13 Fabricators 15 | . . . . . . 1 . . . . 6 8 . Repair Stations 12 | . . . . . . . . . . . 4 8 . Recycling Units . | . . . . . . . . . . . . . . Scanalyzers 3 | . . . . . 2 . . . . . . 1 . Garrison Access 7 | . . . . . 2 1 . . . . . 4 . Terminal Hacks 9 | . 1 . 3 . 1 1 1 . . . . . 2 Record 2 | . . . 2 . . . . . . . . . . Prototype ID Bank 1 | . . . . . 1 . . . . . . . . Open Door 3 | . . . . . . . 1 . . . . . 2 Branch Access Points 1 | . . . . . . 1 . . . . . . . Unreport Threat 1 | . 1 . . . . . . . . . . . . Proto ID Catalog 1 | . . . 1 . . . . . . . . . . Fabricator Hacks 7 | . . . . . . 1 . . . . 2 4 . Network Status 1 | . . . . . . 1 . . . . . . . Load Schematic 5 | . . . . . . . . . . . 2 3 . Build 1 | . . . . . . . . . . . . 1 . Repair Station Hacks 5 | . . . . . . . . . . . 1 4 . Scan Component 4 | . . . . . . . . . . . 1 3 . Repair 1 | . . . . . . . . . . . . 1 . Recycling Unit Hacks . | . . . . . . . . . . . . . . Scanalyzer 3 | . . . . . 2 . . . . . . 1 . Insert Component 2 | . . . . . 1 . . . . . . 1 . Analyze 1 | . . . . . 1 . . . . . . . . Garrison Access Hacks 3 | . . . . . 1 . . . . . . 2 . Seal Access 3 | . . . . . 1 . . . . . . 2 . Unauthorized Hacks 19 | . 8 . . . 10 . . . . . 1 . . Terminals 18 | . 8 . . . 10 . . . . . . . . Track 1 | . 1 . . . . . . . . . . . . Botnet 4 | . 1 . . . 3 . . . . . . . . Detonate 1 | . 1 . . . . . . . . . . . . Operators 1 | . . . . . 1 . . . . . . . . Skim 11 | . 5 . . . 6 . . . . . . . . Fabricators 1 | . . . . . . . . . . . 1 . . Recompile 1 | . . . . . . . . . . . 1 . . Repair Stations . | . . . . . . . . . . . . . . Recycling Units . | . . . . . . . . . . . . . . Scanalyzers . | . . . . . . . . . . . . . . Garrison Access . | . . . . . . . . . . . . . . Data Cores Recovered . | . . . . . . . . . . . . . . Used . | . . . . . . . . . . . . . . Hacking Detections 22 | . 4 . . . 4 2 . . . . 3 5 4 Full Trace Events 14 | . 2 . . . 1 . . . . . 2 5 4 Feedback Events 2 | . . . . . 1 . . . . . . 1 . Corruption 2 | . . . . . 1 . . . . . . 1 . Feedback Blocked . | . . . . . . . . . . . . . . Robot Schematics Acquired 7 | . . . . . . . . . 3 . 4 . . Robots Built . | . . . . . . . . . . . . . . Authchips . | . . . . . . . . . . . . . . Time . | . . . . . . . . . . . . . . Total Robot Build Rating . | . . . . . . . . . . . . . . Part Schematics Acquired 60 | . . . . . 1 . . . 15 . 12 32 . Parts Built 1 | . . . . . . . . . . . . 1 . Authchips 1 | . . . . . . . . . . . . 1 . Time 50 | . . . . . . . . . . . . 50 . Total Part Build Rating 5 | . . . . . . . . . . . . 5 . Parts Repaired 1 | . . . . . . . . . . . . 1 . Time 70 | . . . . . . . . . . . . 70 . Parts Recycled . | . . . . . . . . . . . . . . Recycled Matter . | . . . . . . . . . . . . . . Retrieved Matter . | . . . . . . . . . . . . . . Retrieved Components . | . . . . . . . . . . . . . . Parts Scanalyzed 1 | . . . . . 1 . . . . . . . . Part Schematics Acquired 1 | . . . . . 1 . . . . . . . . Parts Damaged . | . . . . . . . . . . . . . . Bothacking | -11 -10 -10 -10 -9 -8 -7 -7 -7 -7 -6 -6 -5 -5 ------------ Run | Yrd Mat Min Exi Min Mat Fac Low Low Zio Pro Fac Fac Ext Used RIF Installer . | . . . . . . . . . . . . . . Robots Hacked . | . . . . . . . . . . . . . . Non-combat . | . . . . . . . . . . . . . . Combat . | . . . . . . . . . . . . . . Robot Hacks Applied . | . . . . . . . . . . . . . . Relay Couplers Released . | . . . . . . . . . . . . . . Fabnet Peak Effective % . | . . . . . . . . . . . . . . Robots Rewired 5 | . . . . . . . . . . . . . 5 Allies Hacked 1 | . . . . . . . . . . . . . 1 Hacks Repelled . | . . . . . . . . . . . . . . Allies | -11 -10 -10 -10 -9 -8 -7 -7 -7 -7 -6 -6 -5 -5 -------- Run | Yrd Mat Min Exi Min Mat Fac Low Low Zio Pro Fac Fac Ext Total Allies 23 | . . . . 3 . . . . 4 . . 6 10 Largest Group 5 | . . . . 3 3 . . . 4 4 4 3 5 Highest-Rated Group 210 | . . . . 40 40 . . . 157 157 157 210 159 Highest-Rated Ally 159 | . . . . 16 16 . . . 41 41 41 70 159 Zionite Dispatches 4 | . . . . . . . . . . . 1 2 1 Light 1 | . . . . . . . . . . . . 1 . Recon 1 | . . . . . . . . . . . 1 . . Fire 1 | . . . . . . . . . . . . 1 . Infowar Resupply 1 | . . . . . . . . . . . . . 1 Total Orders 15 | . . . . . . . . . . 13 2 . . EXPLORE 13 | . . . . . . . . . . 12 1 . . RETURN 2 | . . . . . . . . . . 1 1 . . Ally Attacks 435 | . . . . . 42 . . . 3 137 . 7 246 Total Damage 7300 | . . . . . 488 . . . 101 2045 . 112 4554 Kills 51 | . . . . . 6 . . . . 16 . 2 27 Allies Corrupted 2 | . . . . . . . . . . 1 . . 1 Allies Melted 1 | . . . . . . . . . . . . . 1 Intel | -11 -10 -10 -10 -9 -8 -7 -7 -7 -7 -6 -6 -5 -5 ------- Run | Yrd Mat Min Exi Min Mat Fac Low Low Zio Pro Fac Fac Ext Active Infowar (turns) 13767 | 16 944 303 815 811 1450 685 1027 1923 2061 945 960 1278 549 Optics 2125 | . . . . . . . . . . . 590 1278 257 Sensors 8757 | . . . . . . 46 1027 1914 2061 945 945 1270 549 Terrain 5368 | . . . . . . 681 1027 1922 1738 . . . . Structural 1993 | . . . . . 1450 543 . . . . . . . Seismic 3307 | 16 944 303 815 811 418 . . . . . . . . Cloaking 1 | . . . . . . . . . . . 1 . . Jamming 1131 | . . . . . . . . . . 1 2 992 136 Robot Analysis Total . | . . . . . . . . . . . . . . Derelict Logs Recovered 7 | . . . . 2 . . 2 . 1 2 . . . Drone Launches 34 | . . . . . . . . . . 12 3 . 19 Drone Recoveries 3 | . . . . . . . . . . 1 2 . . Zionite Intel Received 19 | . . . . . . . . . . . 8 9 2 Emergency Access 2 | . . . . . . . . . . . 1 1 . Guard Positions 1 | . . . . . . . . . . . . 1 . Component Stockpiles 1 | . . . . . . . . . . . 1 . . Prototype Stockpiles 3 | . . . . . . . . . . . 1 1 1 Component Schematics 1 | . . . . . . . . . . . . 1 . Prototype Schematics 3 | . . . . . . . . . . . 1 2 . Unaware Schematics 1 | . . . . . . . . . . . 1 . . Unaware Analyses 1 | . . . . . . . . . . . . 1 . Trap Installations 1 | . . . . . . . . . . . . 1 . Active Terminals 1 | . . . . . . . . . . . . . 1 Active Garrisons 2 | . . . . . . . . . . . 1 1 . Depthwide Sectors/0 1 | . . . . . . . . . . . 1 . . Depthwide Sectors/-1 1 | . . . . . . . . . . . 1 . . Exploration | -11 -10 -10 -10 -9 -8 -7 -7 -7 -7 -6 -6 -5 -5 ------------- Run | Yrd Mat Min Exi Min Mat Fac Low Low Zio Pro Fac Fac Ext Turns Passed 15135 | 96 944 303 815 811 1450 685 1027 1977 2061 1602 1019 1278 1067 Spaces Moved 11390 | 48 569 160 666 409 785 328 513 1165 1469 770 1650 2058 800 Core 25 | 11 . . . . . . . . . . . . 14 Treads 941 | . 80 160 249 409 43 . . . . . . . . Legs 5728 | 37 266 . 417 . 742 328 513 1165 1469 770 15 . 6 Wheels 366 | . 223 . . . . . . . . . . . 143 Hover . | . . . . . . . . . . . . . . Flight 4330 | . . . . . . . . . . . 1635 2058 637 Fastest Speed 20 | 50 100 160 90 160 125 130 127 117 117 117 24 24 20 Average Speed 96 | 103 122 160 117 184 164 179 195 131 117 117 25 24 61 Slowest Speed 267 | 120 160 160 170 240 240 200 197 195 117 117 117 27 267 Overloaded Moves 20 | . . . . . . . . . . . . . 20 Propulsion Burnouts . | . . . . . . . . . . . . . . Robots Hopped 27 | . . . . . . . . . . . 6 16 5 Potential Cave-ins . | . . . . . . . . . . . . . . Cave-ins Triggered . | . . . . . . . . . . . . . . Exploration Rate (%) 67 | 6 92 61 71 83 79 11 63 98 90 98 54 60 72 Regions Visited 13 Branch Regions 8 Pre-discovered Areas 23 | . 3 . 1 1 1 . 1 . . 1 15 . . Known Exits Taken 10 | . 1 1 . 1 . 1 1 1 1 1 1 1 . Unknown Exits Taken 3 | 1 . . 1 . 1 . . . . . . . . Scrap Searched 16 | . . 1 . 2 . . 3 2 3 5 . . . Spaces Dug 99 | . . 5 . . . . . . . . 33 60 1 Terrain Destroyed 235 | . 56 41 . 2 15 3 . . . 1 33 60 24 Melee 93 | . . . . . . . . . . . 32 60 1 Projectile 22 | . . . . 2 15 3 . . . 1 1 . . AOE 120 | . 56 41 . . . . . . . . . . 23 Terrain Rammed . | . . . . . . . . . . . . . . Walls Destroyed . | . . . . . . . . . . . . . . Machines Disabled . | . . . . . . . . . . . . . . Actions | -11 -10 -10 -10 -9 -8 -7 -7 -7 -7 -6 -6 -5 -5 --------- Run | Yrd Mat Min Exi Min Mat Fac Low Low Zio Pro Fac Fac Ext Total 15054 | 74 723 198 700 466 946 401 538 1588 1798 1465 2169 2690 1298 Wait 2964 | . 73 21 . 55 105 30 15 388 300 663 433 536 345 Move 11325 | 47 568 159 665 408 784 327 512 1164 1468 769 1637 2026 791 Hop 25 | . . . . . . . . . . . 6 15 4 Pick Up 112 | 11 11 4 12 1 17 6 1 11 5 14 7 4 8 Fast Attach 56 | 3 . . 1 . 6 10 3 . 5 4 9 6 9 Attach 52 | 4 7 1 2 . 4 2 . 3 3 3 11 3 9 Detach 8 | . . . 1 . . . . . . . 1 2 4 Swap 31 | . 7 1 5 1 6 1 2 3 1 . 2 2 . Drop 117 | . 4 4 14 1 15 12 5 8 9 8 16 7 14 Fire 113 | 9 52 8 . . . 12 . 10 4 4 1 . 13 Melee 155 | . . . . . . . . . 3 . 46 71 35 Ram 1 | . . . . . . . . . . . . . 1 Kick 11 | . 1 . . . 9 1 . . . . . . . Crush . | . . . . . . . . . . . . . . Escape Stasis 49 | . . . . . . . . . . . . 18 31 Rewire 34 | . . . . . . . . . . . . . 34 Trap . | . . . . . . . . . . . . . . Miscellaneous 1 | . . . . . . . . 1 . . . . . Route ------- -11/Scrapyard -10/Materials (discovered 4 exits: *Mat x3 / *Min) -10/Mines (discovered 4 exits: *Mat x2 / *Exi / Sub) -10/Exiles -9/Mines (discovered 2 exits: *Mat x2) -8/Materials (discovered 2 exits: *Fac x2) -7/Factory (discovered 5 exits: *Fac / Sto x2 / *Low x2) -7/Lower Caves -7/Lower Caves (discovered 2 exits: *Fac / *Zio) -7/Zion -6/Proximity Caves -6/Factory (discovered 4 exits: *Fac x2 / *Low x2) -5/Factory (discovered 5 exits: *Fac x2 / *Upp x2 / *Ext) -5/Extension History --------- Turn | Location | Event 8 | -11/Scrapyard | Discovered new exit (range 15) 97 | -11/Scrapyard | Entered Materials 146 | -10/Materials | Discovered new exit (range 16) 318 | -10/Materials | Build established: Mutant 588 | -10/Materials | Discovered new exit (range 10) 596 | -10/Materials | Core integrity fell below 50% 597 | -10/Materials | Derelicts attacked the area 679 | -10/Materials | Lost 4 parts (2n2w) 792 | -10/Materials | Discovered new exit (range 6) 798 | -10/Materials | Discovered new exit (range 16) 934 | -10/Materials | Learned location of 1 exit from Recycling 963 | -10/Materials | Identified exit to Mines 963 | -10/Materials | Identified exit to Materials 985 | -10/Materials | Learned location of Storage (-7) 986 | -10/Materials | Learned location of Mines (-10) 987 | -10/Materials | Learned location of 2 exits from Mines 988 | -10/Materials | Learned 4 Recycling zone layouts 990 | -10/Materials | Learned location of 2 exits from Mines 1041 | -10/Materials | Entered Mines 1042 | -10/Mines | Identified exit to Exiles 1042 | -10/Mines | Identified exit to Subcaves 1111 | -10/Mines | Received a Rocket Launcher from a helpful Derelict 1177 | -10/Mines | Found a hidden stash of uninstalled traps 1213 | -10/Mines | Assembled infested the area 1273 | -10/Mines | Core integrity fell below 20% 1338 | -10/Mines | Deemed a non-threat by the Exiles lab entrance 1344 | -10/Mines | Entered Exiles 1383 | -10/Exiles | Met 8R-AWN 1412 | -10/Exiles | Met EX-HEX 1480 | -10/Exiles | Learned location of Zion (-7) 1506 | -10/Exiles | Met EX-BIN 1528 | -10/Exiles | Aligned with FarCom system 1530 | -10/Exiles | Given EX-Vault access code 1567 | -10/Exiles | Opened EX-Vault 1583 | -10/Exiles | Found AWS/Thermal 1594 | -10/Exiles | Found Potential Leg 1597 | -10/Exiles | Found Potential Leg 1623 | -10/Exiles | Warned to stay clear of 0b10 Research branches 1646 | -10/Exiles | Met EX-DEC 1763 | -10/Exiles | Found Army-in-a-Box 1883 | -10/Exiles | Discovered new exit (range 14) 2159 | -10/Exiles | Stole three prototypes: AWS/Thermal, Potential Leg, Army-in-a-Box 2159 | -10/Exiles | Entered Mines 2181 | -9/Mines | Met a Derelict bent on vengeance 2442 | -9/Mines | A weapon hastily lodged in a ceiling crevice suddenly fell to the ground 2629 | -9/Mines | Identified exit to Materials 2629 | -9/Mines | Discovered exit to Materials (range 8) 2790 | -9/Mines | Assisted by bots powering up and referring to "LRC-V3" 2970 | -9/Mines | Entered Materials 2970 | -8/Materials | Accompanied by 3 allies 2970 | -8/Materials | Evolved 4 slots: Propulsion x2, Utility x2 3366 | -8/Materials | Discovered new exit (range 9) 3655 | -8/Materials | Discovered new exit (range 8) 3999 | -8/Materials | Learned location of 1 exit from Recycling 4085 | -8/Materials | Learned Storage stockpile data 4114 | -8/Materials | Learned 4 Lower Caves zone layouts 4135 | -8/Materials | Learned 2 Lower Caves zone layouts 4146 | -8/Materials | Learned Factory emergency access door positions 4165 | -8/Materials | Learned 4 Factory zone layouts 4193 | -8/Materials | Learned location of Recycling (-7) 4420 | -8/Materials | Entered Factory 4420 | -7/Factory | Evolved 2 slots: Utility x2 4421 | -7/Factory | Identified exit to Lower Caves 4422 | -7/Factory | FarCom data flow suspended 4478 | -7/Factory | Identified exit to Storage 4720 | -7/Factory | Build established: Skirmisher 4930 | -7/Factory | AWS/Thermal suddenly broke down 4989 | -7/Factory | Discovered new exit (range 5) 5105 | -7/Factory | Entered Lower Caves 5106 | -7/Lower Caves | Identified exit to Lower Caves 5661 | -7/Lower Caves | Encountered a Warlord checkpoint 5679 | -7/Lower Caves | Learned Factory emergency access door positions 6065 | -7/Lower Caves | Found DRS Beacon 6132 | -7/Lower Caves | Entered another Lower Caves area 6377 | -7/Lower Caves | Discovered new exit (range 3) 6383 | -7/Lower Caves | Identified exit to Factory 6704 | -7/Lower Caves | Lost 3 parts (1p2u) 6909 | -7/Lower Caves | Activated DRS Beacon 7090 | -7/Lower Caves | Spotted RK-819(f) 7092 | -7/Lower Caves | Encountered a Master Thief 7094 | -7/Lower Caves | Spotted ZU-PNG(f) 7094 | -7/Lower Caves | Spotted 6Q-4B8(f) 7095 | -7/Lower Caves | Encountered a Master Thief 7095 | -7/Lower Caves | Encountered a Master Thief 7096 | -7/Lower Caves | Potential Leg stolen by Master Thief 7204 | -7/Lower Caves | Discovered new exit (range 13) 7218 | -7/Lower Caves | Identified exit to Zion 7412 | -7/Lower Caves | Attracted the attention of an 0b10 checkpoint 8109 | -7/Lower Caves | Entered Zion 8172 | -7/Zion | Discovered new exit (range 10) 8232 | -7/Zion | Visited the Megawrench Repair Shop 8280 | -7/Zion | System corruption cleaned by Quarantine Array 8465 | -7/Zion | Given the Hacking Drone Bay 8549 | -7/Zion | Found Prototype Device 8549 | -7/Zion | Identified Mobile Refinery Mk. CCLXVII 8700 | -7/Zion | Learned Factory fabricator intel 8765 | -7/Zion | Met Imprinter 9164 | -7/Zion | Imprinted 9167 | -7/Zion | Declared Zion's savior 9493 | -7/Zion | Found GAL Module 9847 | -7/Zion | Found Prototype Device 9847 | -7/Zion | Identified Hacking Drone Bay 10135 | -7/Zion | Identified exit to Proximity Caves 10147 | -7/Zion | Build established: Mutant 10170 | -7/Zion | Entered Proximity Caves 10170 | -6/Proximity Caves | Accompanied by 4 allies 10403 | -6/Proximity Caves | Learned 4 Factory zone layouts 10778 | -6/Proximity Caves | Discovered exit to Factory (range 121) 11001 | -6/Proximity Caves | Allies destroyed B-75 Beast 11620 | -6/Proximity Caves | Build established: Derelict-Mutant 11772 | -6/Proximity Caves | Entered Factory 11772 | -6/Factory | Accompanied by 4 allies 11772 | -6/Factory | Evolved 2 slots: Propulsion x2 11775 | -6/Factory | Loaded intel: 4 fabricator locations 12050 | -6/Factory | Retrieved Zion intel report: Depthwide Sectors/-6 12058 | -6/Factory | Retrieved Zion intel report: Emergency Access 12105 | -6/Factory | Retrieved Zion intel report: Active Garrisons 12106 | -6/Factory | Discovered new exit (range 12) 12108 | -6/Factory | Build established: Scavenger-Sprinter 12109 | -6/Factory | Identified exit to Factory 12170 | -6/Factory | Retrieved Zion intel report: Unaware Schematics 12171 | -6/Factory | Zion Recon squad teleported in 12175 | -6/Factory | Discovered new exit (range 9) 12177 | -6/Factory | Identified exit to Lower Caves 12178 | -6/Factory | Discovered exit to Lower Caves (range 25) 12237 | -6/Factory | Retrieved Zion intel report: Component Stockpiles 12257 | -6/Factory | Discovered exit to Factory (range 19) 12259 | -6/Factory | Spotted B-75 Beast 12276 | -6/Factory | Retrieved Zion intel report: Depthwide Sectors/-5 12344 | -6/Factory | Retrieved Zion intel report: Prototype Stockpiles 12420 | -6/Factory | Retrieved Zion intel report: Prototype Schematics 12507 | -6/Factory | Build established: Scavenger-Ninja 12791 | -6/Factory | Entered another Factory area 12791 | -5/Factory | Evolved 2 slots: Power x1, Utility x1 12792 | -5/Factory | Identified exit to Upper Caves 12830 | -5/Factory | Discovered new exit (range 16) 12982 | -5/Factory | Retrieved Zion intel report: Emergency Access 13043 | -5/Factory | Retrieved Zion intel report: Trap Installations 13078 | -5/Factory | Fabricated Cld. Cesium-ion Thruster (x1) 13084 | -5/Factory | Retrieved Zion intel report: Active Garrisons 13089 | -5/Factory | Retrieved Zion intel report: Guard Positions 13223 | -5/Factory | Discovered exit to Upper Caves (range 8) 13225 | -5/Factory | Retrieved Zion intel report: Unaware Analyses 13226 | -5/Factory | Zion Light squad teleported in 13327 | -5/Factory | Discovered new exit (range 22) 13371 | -5/Factory | Identified exit to Factory 13611 | -5/Factory | Retrieved Zion intel report: Prototype Stockpiles 13625 | -5/Factory | Retrieved Zion intel report: Prototype Schematics 13639 | -5/Factory | Retrieved Zion intel report: Component Schematics 13640 | -5/Factory | Retrieved Zion intel report: Prototype Schematics 13641 | -5/Factory | Zion Fire squad teleported in 13688 | -5/Factory | Lost 3 allies 13735 | -5/Factory | Repaired Broken Nuclear Pulse Thruster 14063 | -5/Factory | Discovered new exit (range 13) 14068 | -5/Factory | Identified exit to Extension 14069 | -5/Factory | Entered Extension 14116 | -5/Extension | Zion Infowar Resupply teleported in 14129 | -5/Extension | Retrieved Zion intel report: Prototype Stockpiles 14134 | -5/Extension | Retrieved Zion intel report: Active Terminals 14231 | -5/Extension | Rescued a captive Derelict 14434 | -5/Extension | Warlord forces began an assault 14506 | -5/Extension | Spotted B-75 Beast 14564 | -5/Extension | Allies destroyed B-75 Beast 14589 | -5/Extension | Lost 11 allies 14635 | -5/Extension | Spotted B-75 Beast 14653 | -5/Extension | Allies destroyed B-75 Beast 14686 | -5/Extension | Lost 17 allies 14833 | -5/Extension | Rescued a captive Derelict 14894 | -5/Extension | Build established: Scavenger-Mutant 15016 | -5/Extension | Energy Cycler disabled 15016 | -5/Extension | Rescued a captive Derelict 15017 | -5/Extension | Rescued a captive Derelict 15017 | -5/Extension | Rescued a captive Derelict 15021 | -5/Extension | Rescued a captive Derelict 15034 | -5/Extension | Rescued a captive Derelict 15036 | -5/Extension | Rescued A7 15064 | -5/Extension | Lost 4 parts (4n) 15111 | -5/Extension | Core integrity fell below 50% 15132 | -5/Extension | Core integrity fell below 20% 15134 | -5/Extension | Extracted ID and sensor layout for unrecognized location from A7's data core 15136 | -5/Extension | Destroyed by G-67 Veteran with Plasma Rifle Last Messages --------------- 15117_ 94-XXP(b) rewired. 15118_ Cld. Cesium-ion Thruster destroyed. 15120_ Dropped Med. Storage Unit. 15121_ Attempting to rewire 9T-9CQ(b). 15121_ O-24 Administrator suffers critical hit (Burn). 15121_ P-70 Sage hacks 94-XXP(b), rebooting. 15122_ Attempting to rewire N5-4MT(l). 15123_ P-70 Sage resets G-67 Veteran, system corruption cleaned. 15123_ A7: "I've done al##MISSION::FAILED##" 15123_ A7 destroyed. 15128_ P-70 Sage misfires. 15129_ 94-XXP(b) suffers critical hit (Burn). 15129_ 94-XXP(b) destroyed. 15130_ Acquired Adv. Hacking Suite. 15132_ Acquired Prototype Device. 15132_ Identified Adv. Gravity Neutralizer. 15133_ Slammed into O-24 Administrator. 15134_ Acquired data core, extracted ID and sensor data for unrecognized location. 15136_ Acquired 2 matter. Map ----- +----------------------------------------------------+ | | | | | | | | | | | | | | | | | | | | | | | | | | | | | | | | | | | | | ?????????????????????????????????????????????????? | | ??????????????????????????###############????????? | | ??????########????????????# ?????????? | | ####### #????????????# ?????????? | | " #?????####???#^ " ??????????? | | ######" !####?##;;##### "" ??????????? | | ??????# ! ##"###= ; # " #???????????? | | ??????# ; [ !% @%g #???????????? | | ??????# ; !% /%= g %g " #???????????? | | ??????# # *!%*[ !p;;;g #???????????? | | ??????# #####; ogg=; ; #???????????? | | ??????# !#???#;;=*;;; ; #???????????? | | ??????# #???# ! # ; #???????????? | | ??????# #???# %! #;; % ] /#???????????? | | ??????# ! #???# / */ + %= #???????????? | | ??????# ]#???# / / #;;;;;;;;; ###???????????? | | ??????########???# lb #### # # = #???????????? | | ?????????????????# =! #??#######*%##???????????? | | ?????????????????########????????# #????????????? | | ?????????????????????????????????####????????????? | | ?????????????????????????????????????????????????? | | ?????????????????????????????????????????????????? | | ?????????????????????????????????????????????????? | | ?????????????????????????????????????????????????? | | ?????????????????????????????????????????????????? | | ?????????????????????????????????????????????????? | | ?????????????????????????????????????????????????? | | ?????????????????????????????????????????????????? | | ?????????????????????????????????????????????????? | | ?????????????????????????????????????????????????? | | ?????????????????????????????????????????????????? | | ?????????????????????????????????????????????????? | +----------------------------------------------------+ Best States ------------- Heat Dissipation 53 Energy Generation 29 Energy Capacity 310 Matter Stores 300 Matter Capacity 300 Sight Range 22 Robot Scan Range 15 Terrain Scan Range 16 Terrain Scan Density 110 Jamming Range 14 Armor Coverage 600 Evasion (%) 65 Melee Accuracy 6 Recoil Reduction 2 Matter Filtering 50 Authchip Count 1 Item Schematics ----------------- Imp. VTOL Module | -8/Materials | Scanalyzed Plasma Rifle | -7/Zion | Archive Flak Gun | -7/Zion | Archive Recalibrator | -7/Zion | Archive Imp. Hacking Suite | -7/Zion | Archive IFF Parser | -7/Zion | Archive Matter Filter | -7/Zion | Archive Imp. Plasma Cutter | -7/Zion | Archive Lrn. Proton Cannon | -7/Zion | Archive Launcher Guidance Computer | -7/Zion | Archive Imp. Medium Treads | -7/Zion | Archive Imp. Medium Armor Plating | -7/Zion | Archive EM Shield | -7/Zion | Archive Imp. Cooling System | -7/Zion | Archive Imp. Target Analyzer | -7/Zion | Archive Tiamat Missile Launcher | -7/Zion | Archive Enh. Autogun | -6/Factory | Z-intel Exp. Targeting Computer | -6/Factory | Z-intel Cld. Cesium-ion Thruster | -6/Factory | Z-intel Cld. Aerolev Unit | -6/Factory | Z-intel Thermal Defense Suite | -6/Factory | Z-intel Hvy. EM Shotgun | -6/Factory | Z-intel Imp. Heavy Machine Gun | -6/Factory | Z-intel Adv. EMP Blaster | -6/Factory | Z-intel F-cell Engine | -6/Factory | Z-intel Cld. VTOL Module | -6/Factory | Z-intel Biomechanical Wings | -6/Factory | Z-intel Force Rifle | -6/Factory | Z-intel Enh. Coil Gun | -5/Factory | Z-intel Tesla Bomb Launcher | -5/Factory | Z-intel Mni. Assault Cannon | -5/Factory | Z-intel Mni. Smartbomb Launcher | -5/Factory | Z-intel Gravity Neutralizer | -5/Factory | Z-intel Imp. KE Penetrator | -5/Factory | Z-intel Enh. Nuclear Core | -5/Factory | Z-intel Enh. Flexi-carbon Leg | -5/Factory | Z-intel Cld. Plasma Rifle | -5/Factory | Z-intel Imp. Heavy Laser | -5/Factory | Z-intel Imp. Field Recycling Unit | -5/Factory | Z-intel Phase Cannon | -5/Factory | Z-intel Lrn. Tractor Beam | -5/Factory | Z-intel Gravmag Array | -5/Factory | Z-intel Imp. Recalibrator | -5/Factory | Z-intel Lyr. Light Armor Plating | -5/Factory | Z-intel ECM Suite | -5/Factory | Z-intel Neutrino Core | -5/Factory | Z-intel Kinecellerator | -5/Factory | Z-intel Energy Filter | -5/Factory | Z-intel Scythe | -5/Factory | Z-intel EM Disruption Field | -5/Factory | Z-intel Adv. Recoil Stabilizer | -5/Factory | Z-intel KE Penetrator | -5/Factory | Z-intel Cld. Gravmag System | -5/Factory | Z-intel Cld. Pulse Rifle | -5/Factory | Z-intel Prc. Energy Filter | -5/Factory | Z-intel Enh. Armored Leg | -5/Factory | Z-intel Plasma Sword | -5/Factory | Z-intel Kinetic Spear | -5/Factory | Z-intel Exp. Heat Sink | -5/Factory | Z-intel Imp. Energy Well | -5/Factory | Z-intel Robot Schematics ------------------ A-02 Transporter | -7/Zion | Archive K-01 Serf | -7/Zion | Archive G-47 Trooper | -7/Zion | Archive T-07 Excavator | -6/Factory | Z-intel M-22 Extractor | -6/Factory | Z-intel L-41 Fighter | -6/Factory | Z-intel R-06 Scavenger | -6/Factory | Z-intel Fabricated ------------ Cld. Cesium-ion Thruster | x1 | -5/Factory | Authchip Repaired ---------- Nuclear Pulse Thruster | 33% | -5/Factory | Broken Alien Tech Used ----------------- None Achievements -------------- None Challenges ------------ None Game ------ Seed UltimateDeflectorWarhead Manual? 0 Play Time 02:41:00 Cumulative 179.2 hours Start 2025.09.13 @ 14:36:52 End 2025.09.13 @ 20:49:54 Sessions 1 Manual Loads 0 Difficulty Rogue Special Mode None Game No. 247 Rogue 247 Adventurer 0 Explorer 0 Win Type - Total 2 Types 2/0/0/0/0/0/0/0/0/0 Lore% 72 Gallery% 69 Achievement% 60 Wizard Run 0 Options --------- Layout 0 ASCII 0 Keyboard 0 Movement Mouse Keybinds 0 Fullscreen 1 Font 16/SmallcapsGlow Map View 75x55 Zoom Use 0% Tactical HUD 1 Map Filters NONE Filters NONE Steam 1 RUN: e83b026f-33f5-4f6b-99f0-26be45a59326